Workbook

Sheet Лист1
A1: Школа | F1: Утвердил: | G1: должность | H1: Директор МАУ "МКШП"
A2: Типовое примерное меню приготавливаемых блюд | G2: фамилия | H2: Михин А.С.
A3: Возрастная категория | E3: 7-11 лет | G3: дата | H3: 28 | I3: 2 | J3: 2025
H4: день | I4: месяц | J4: год
A5: Неделя | B5: День недели | C5: Прием пищи | D5: Раздел меню | E5: Блюда | F5: Вес блюда, г | G5: Белки | H5: Жиры | I5: Углеводы | J5: Калорийность | K5: № рецептуры | L5: Цена
A6: 1 | B6: 1 | C6: Завтрак | D6: гор.блюдо | E6: Каша кукурузная молочная с маслом | F6: 205 | G6: 4 | H6: 4 | I6: 17 | J6: 113 | K6: 80 | L6: 20.92
D7: гор.напиток | E7: Чай с сахаром и лимоном | F7: 200 | G7: 0 | H7: 4 | I7: 15 | J7: 15.13 | K7: 113 | L7: 2.15
D8: хлеб | E8: Батон пшеничный | F8: 30 | G8: 2.25 | H8: 0.87 | I8: 14.94 | J8: 78.6 | K8: 121 | L8: 1.18
D9: 3 блюдо | E9: Фруктовый десерт | F9: 100 | G9: 0 | H9: 0 | I9: 8 | J9: 36.6 | K9: этик. | L9: 62
D10: закуска | E10: Блинчики с маслом | F10: 90 | G10: 5 | H10: 11 | I10: 30 | J10: 243.54 | K10: 225 | L10: 24.86
D15: итого | F15: =SUM(F6:F14) -> 625 | G15: =SUM(G6:G14) -> 11.25 | H15: 19.87 | I15: 84.94 | J15: 486.87 | L15: =SUM(L6:L14) -> 111.11
A16: =A6 -> 1 | B16: =B6 -> 1 | C16: Обед | D16: закуска | E16: Фрукты в ассортименте (яблоко свежее) | F16: 150 | G16: 0.4 | H16: 0 | I16: 11.3 | J16: 46 | K16: 24 | L16: 21.42
D17: 1 блюдо | E17: Щи с мясом и сметаной | F17: 200 | G17: 3 | H17: 3.14 | I17: 3.56 | J17: 54.87 | K17: 30 | L17: 16.47
D18: 2 блюдо | E18: Плов с мясом | F18: 250 | G18: 10.76 | H18: 13 | I18: 16 | J18: 226.83 | K18: 504 | L18: 56.3
D19: гарнир
D20: сладкое
D21: хлеб бел. | E21: Хлеб пшеничный | F21: 20 | G21: 1.9 | H21: 12.3 | I21: 13.26 | J21: 58.75 | K21: 119 | L21: 0.49
D22: хлеб черн. | E22: Хлеб ржаной | F22: 20 | G22: 1.32 | H22: 0.24 | I22: 8.04 | J22: 39.6 | K22: 120 | L22: 0.66
D23: напиток | E23: Компот из сухофруктов | F23: 200 | G23: 0.18 | H23: 0 | I23: 7.42 | J23: 29.74 | K23: 98 | L23: 3.74
D28: итого | F28: =SUM(F16:F27) -> 840 | G28: =SUM(G16:G27) -> 17.56 | H28: 28.68 | I28: 59.58 | J28: 455.79 | L28: =SUM(L16:L27) -> 99.08
A29: =A6 -> 1 | B29: =B6 -> 1 | C29: Итого за день: | F29: =F15+F28 -> 1465 | G29: =G15+G28 -> 28.81 | H29: 48.55 | I29: 144.52 | J29: 942.66 | L29: 209.01
A30: 1 | B30: 2 | C30: Завтрак | D30: гор.блюдо | E30: Каша гречневая вязкая с маслом | F30: 150 | G30: 4.3 | H30: 4.24 | I30: 18.77 | J30: 129.54 | K30: 227 | L30: 7.1
D31: гор.напиток | E31: Напиток плодово-ягодный витаминизированный | F31: 200 | G31: 0 | H31: 0 | I31: 14.16 | J31: 55.48 | K31: 104 | L31: 3.86
D32: хлеб | E32: Хлеб пшеничный | F32: 25 | G32: 1.9 | H32: 12.3 | I32: 13.26 | J32: 58.75 | K32: 119 | L32: 0.61
D33: хлеб черн. | E33: Хлеб ржаной | F33: 20 | G33: 1.32 | H33: 0.24 | I33: 8.04 | J33: 39.6 | K33: 120 | L33: 0.66
D34: кисломол. | E34: Масло сливочное порциями | F34: 15 | G34: 0.12 | H34: 10.88 | I34: 0.19 | J34: 99.15 | K34: 2 | L34: 16.5
D35: 2 блюдо | E35: Филе птицы тушеное с овощами | F35: 90 | G35: 15.77 | H35: 13.36 | I35: 1.61 | J35: 190.47 | K35: 117 | L35: 39.19
D39: итого | F39: =SUM(F30:F38) -> 500 | G39: =SUM(G30:G38) -> 23.41 | H39: =SUM(H30:H38) -> 41.02 | I39: =SUM(I30:I38) -> 56.03 | J39: =SUM(J30:J38) -> 572.99 | L39: =SUM(L30:L38) -> 67.92
A40: =A30 -> 1 | B40: =B30 -> 2 | C40: Обед | D40: закуска | E40: Икра овощная кабачковая | F40: 60 | G40: 1.2 | H40: 5.4 | I40: 5.16 | J40: 73.2 | K40: 135 | L40: 11.3
D41: 1 блюдо | E41: Суп рыбный с крупой (рыбные консервы) | F41: 200 | G41: 4.98 | H41: 6.07 | I41: 12.72 | J41: 125.51 | K41: 36 | L41: 11.99
D42: 2 блюдо | E42: Курица запеченная с сыром | F42: 90 | G42: 24.87 | H42: 21.09 | I42: 0.72 | J42: 290.5 | K42: 82 | L42: 43.65
D43: гарнир | E43: Пюре из гороха с маслом | F43: 150 | G43: 13.95 | H43: 4.65 | I43: 31.95 | J43: 224.85 | K43: 210 | L43: 9.03
D44: сладкое
D45: хлеб бел. | E45: Хлеб пшеничный | F45: 45 | G45: 3.42 | H45: 0.36 | I45: 22.14 | J45: 105.75 | K45: 119 | L45: 1.1
D46: хлеб черн. | E46: Хлеб ржаной | F46: 25 | G46: 1.65 | H46: 0.3 | I46: 10.05 | J46: 49.5 | K46: 120 | L46: 0.82
D47: напиток | E47: Компот из смеси фруктов и ягод | F47: 200 | G47: 0.25 | H47: 0 | I47: 12.73 | J47: 51.3 | K47: 216 | L47: 8.31
D52: итого | F52: =SUM(F40:F51) -> 770 | G52: =SUM(G40:G51) -> 50.32 | H52: =SUM(H40:H51) -> 37.87 | I52: =SUM(I40:I51) -> 95.47 | J52: =SUM(J40:J51) -> 920.61 | L52: =SUM(L40:L51) -> 86.2
A53: =A30 -> 1 | B53: =B30 -> 2 | C53: Итого за день: | F53: =F39+F52 -> 1270 | G53: =G39+G52 -> 73.73 | H53: =H39+H52 -> 78.89 | I53: =I39+I52 -> 151.5 | J53: =J39+J52 -> 1493.6 | L53: 154.12
A54: 1 | B54: 3 | C54: Завтрак | D54: гор.блюдо | E54: Картофельное пюре с маслом | F54: 150 | G54: 3.28 | H54: 7.81 | I54: 21.57 | J54: 170.22 | K54: 50 | L54: 22.92
D55: гор.напиток | E55: Компот из сухофруктов | F55: 200 | G55: 0.37 | H55: 0 | I55: 14.85 | J55: 59.48 | K55: 98 | L55: 3.74
D56: хлеб | E56: Хлеб пшеничный | F56: 20 | G56: 1.52 | H56: 0.16 | I56: 9.84 | J56: 47 | K56: 119 | L56: 0.49
D57: хлеб черн. | E57: Хлеб ржаной | F57: 20 | G57: 0.24 | H57: 8.04 | I57: 39.6 | J57: 39.6 | K57: 120 | L57: 0.66
D58: закуска | E58: Огурцы порционные | F58: 60 | G58: 0.48 | H58: 0.6 | I58: 1.56 | J58: 8.4 | K58: 28 | L58: 16.32
D59: 2 блюдо | E59: Мясо тушеное | F59: 90 | G59: 18 | H59: 16.5 | I59: 2.89 | J59: 232.8 | K59: 88 | L59: 32.01
D63: итого | F63: =SUM(F54:F62) -> 540 | G63: =SUM(G54:G62) -> 23.89 | H63: =SUM(H54:H62) -> 33.11 | I63: =SUM(I54:I62) -> 90.31 | J63: =SUM(J54:J62) -> 557.5 | L63: =SUM(L54:L62) -> 76.14
A64: =A54 -> 1 | B64: =B54 -> 3 | C64: Обед | D64: закуска | E64: Огурцы порционные | F64: 60 | G64: 0.48 | H64: 0.6 | I64: 1.56 | J64: 8.4 | K64: 28 | L64: 16.32
D65: 1 блюдо | E65: Рассольник с мясом и сметаной | F65: 200 | G65: 6.2 | H65: 6.38 | I65: 12.3 | J65: 131.76 | K65: 33 | L65: 17.73
D66: 2 блюдо | E66: Филе птицы тушеное в сливочном - сырном соусе | F66: 90 | G66: 19.78 | H66: 24.51 | I66: 2.52 | J66: 312.28 | K66: 300 | L66: 56.77
D67: гарнир | E67: Спагетти отварные с маслом | F67: 150 | G67: 6.76 | H67: 3.93 | I67: 41.29 | J67: 227.48 | K67: 65 | L67: 10.76
D68: сладкое
D69: хлеб бел. | E69: Хлеб пшеничный | F69: 20 | G69: 1.52 | H69: 0.16 | I69: 9.84 | J69: 47 | K69: 119 | L69: 0.49
D70: хлеб черн. | E70: Хлеб ржаной | F70: 20 | G70: 0.24 | H70: 8.04 | I70: 39.6 | J70: 39.6 | K70: 120 | L70: 0.66
D71: напиток | E71: Чай с сахаром | F71: 200 | G71: 0 | H71: 0 | I71: 7.27 | J71: 28.73 | K71: 114 | L71: 1.13
D76: итого | F76: =SUM(F64:F75) -> 740 | G76: =SUM(G64:G75) -> 34.98 | H76: =SUM(H64:H75) -> 43.62 | I76: =SUM(I64:I75) -> 114.38 | J76: =SUM(J64:J75) -> 795.25 | L76: =SUM(L64:L75) -> 103.86
A77: =A54 -> 1 | B77: =B54 -> 3 | C77: Итого за день: | F77: =F63+F76 -> 1280 | G77: =G63+G76 -> 58.87 | H77: =H63+H76 -> 76.73 | I77: =I63+I76 -> 204.69 | J77: =J63+J76 -> 1352.75 | L77: 180
A78: 1 | B78: 4 | C78: Завтрак | D78: гор.блюдо | E78: Запеканка из творога с соусом шоколадным | F78: 150 | G78: 25.34 | H78: 11.2 | I78: 29.53 | J78: 322.83 | K78: 196 | L78: 45.47
D79: гор.напиток | E79: Чай с сахаром | F79: 200 | G79: 0 | H79: 0 | I79: 7.27 | J79: 28.73 | K79: 114 | L79: 1.13
D80: хлеб | E80: Батон пшеничный | F80: 25 | G80: 2.25 | H80: 0.87 | I80: 14.94 | J80: 78.6 | K80: 121 | L80: 0.98
D81: закуска | E81: Фрукты в ассортименте (яблоко свежее) | F81: 150 | G81: 0.6 | H81: 0.45 | I81: 15.45 | J81: 70.5 | K81: 24 | L81: 21.42
D87: итого | F87: =SUM(F78:F86) -> 525 | G87: =SUM(G78:G86) -> 28.19 | H87: =SUM(H78:H86) -> 12.52 | I87: =SUM(I78:I86) -> 67.19 | J87: =SUM(J78:J86) -> 500.66 | L87: =SUM(L78:L86) -> 69
A88: =A78 -> 1 | B88: =B78 -> 4 | C88: Обед | D88: закуска | E88: Кукуруза консервированная | F88: 60 | G88: 1.24 | H88: 0.21 | I88: 6.12 | J88: 31.32 | K88: 133 | L88: 16.88
D89: 1 блюдо | E89: Свекольник с мясом и сметаной | F89: 200 | G89: 5.88 | H89: 8.82 | I89: 9.6 | J89: 142.2 | K89: 32 | L89: 20.28
D90: 2 блюдо | E90: Мясо тушеное | F90: 90 | G90: 18 | H90: 16.5 | I90: 2.89 | J90: 232.8 | K90: 88 | L90: 32.01
D91: гарнир | E91: Каша гречневая рассыпчатая с маслом | F91: 150 | G91: 7.26 | H91: 4.96 | I91: 31.76 | J91: 198.84 | K91: 54 | L91: 8.18
D92: сладкое
D93: хлеб бел. | E93: Хлеб пшеничный | F93: 20 | G93: 1.52 | H93: 0.16 | I93: 9.84 | J93: 47 | K93: 119 | L93: 0.49
D94: хлеб черн. | E94: Хлеб ржаной | F94: 20 | G94: 1.32 | H94: 0.24 | I94: 8.04 | J94: 39.6 | K94: 120 | L94: 0.66
D95: напиток | E95: Сок фруктовый | F95: 200 | G95: 1 | H95: 0.2 | I95: 20.2 | J95: 92 | K95: 107 | L95: 9.01
D99: итого | F99: =SUM(F88:F98) -> 740 | G99: =SUM(G88:G98) -> 36.22 | H99: =SUM(H88:H98) -> 31.09 | I99: =SUM(I88:I98) -> 88.45 | J99: =SUM(J88:J98) -> 783.76 | L99: =SUM(L88:L98) -> 87.51
A100: =A78 -> 1 | B100: =B78 -> 4 | C100: Итого за день: | F100: =F87+F99 -> 1265 | G100: =G87+G99 -> 64.41 | H100: =H87+H99 -> 43.61 | I100: =I87+I99 -> 155.64 | J100: =J87+J99 -> 1284.42 | L100: 156.71
A101: 1 | B101: 5 | C101: Завтрак | D101: гор.блюдо | E101: Спагетти отварные с маслом | F101: 150 | G101: 6.76 | H101: 3.93 | I101: 41.29 | J101: 227.48 | K101: 65 | L101: 10.76
D102: гор.напиток | E102: Чай с шиповником | F102: 200 | G102: 0.06 | H102: 0 | I102: 19.25 | J102: 76.95 | K102: 60 | L102: 8.42
D103: хлеб | E103: Хлеб пшеничный | F103: 25 | G103: 1.52 | H103: 0.16 | I103: 9.84 | J103: 47 | K103: 119 | L103: 0.49
D104: хлеб черн. | E104: Хлеб ржаной | F104: 20 | G104: 1.32 | H104: 0.24 | I104: 8.04 | J104: 39.6 | K104: 120 | L104: 0.66
D105: закуска | E105: Сыр порциями | F105: 15 | G105: 4.64 | H105: 5.9 | I105: 0 | J105: 72.8 | K105: 1 | L105: 13.81
D106: 2 блюдо | E106: Филе птицы тушеное в томатном соусе | F106: 90 | G106: 14.84 | H106: 12.69 | I106: 4.46 | J106: 191.87 | K106: 80 | L106: 35.49
D111: итого | F111: =SUM(F101:F110) -> 500 | G111: =SUM(G101:G110) -> 29.14 | H111: =SUM(H101:H110) -> 22.92 | I111: =SUM(I101:I110) -> 82.88 | J111: =SUM(J101:J110) -> 655.7 | L111: =SUM(L101:L110) -> 69.63
A112: =A101 -> 1 | B112: =B101 -> 5 | C112: Обед | D112: закуска | E112: Фрукты в ассортименте (яблоко свежее) | F112: 150 | G112: 0.4 | H112: 0 | I112: 11.3 | J112: 46 | K112: 24 | L112: 21.42
D113: 1 блюдо | E113: Суп картофельный с мясом | F113: 200 | G113: 3 | H113: 3 | I113: 5 | J113: 57.8 | K113: 37 | L113: 14.28
D114: 2 блюдо | E114: Рыба тушенная с овощами | F114: 90 | G114: 14 | H114: 3 | I114: 5 | J114: 103.9 | K114: 75 | L114: 34.02
D115: гарнир | E115: Рис отварной с маслом | F115: 150 | G115: 3 | H115: 3 | I115: 27 | J115: 148 | K115: 53 | L115: 13.83
D116: сладкое
D117: хлеб бел. | E117: Хлеб пшеничный | F117: 45 | G117: 2.13 | H117: 0.21 | I117: 13.26 | J117: 240 | K117: 119 | L117: 1.1
D118: хлеб черн. | E118: Хлеб ржаной | F118: 30 | G118: 1.14 | H118: 0.22 | I118: 7.44 | J118: 181 | K118: 120 | L118: 1.31
D119: напиток | E119: Напиток плодово-ягодный витаминизированный | F119: 200 | G119: 0 | H119: 0 | I119: 7 | J119: 29.2 | K119: 104 | L119: 3.86
D124: итого | F124: =SUM(F112:F123) -> 865 | G124: =SUM(G112:G123) -> 23.67 | H124: =SUM(H112:H123) -> 9.43 | I124: =SUM(I112:I123) -> 76 | J124: =SUM(J112:J123) -> 805.9 | L124: =SUM(L112:L123) -> 89.82
A125: =A101 -> 1 | B125: =B101 -> 5 | C125: Итого за день: | F125: =F111+F124 -> 1365 | G125: =G111+G124 -> 52.81 | H125: =H111+H124 -> 32.35 | I125: =I111+I124 -> 158.88 | J125: =J111+J124 -> 1461.6 | L125: 159.45
A126: 2 | B126: 1 | C126: Завтрак | D126: гор.блюдо | E126: Каша рисовая молочная с ананасами и маслом | F126: 205 | G126: 6.23 | H126: 7.14 | I126: 31.66 | J126: 215.55 | K126: 56 | L126: 28.63
D127: гор.напиток | E127: Чай с сахаром | F127: 200 | G127: 0 | H127: 0 | I127: 7.27 | J127: 28.73 | K127: 114 | L127: 1.13
D128: хлеб | E128: Батон пшеничный | F128: 30 | G128: 2.25 | H128: 0.87 | I128: 14.94 | J128: 78.6 | K128: 116 | L128: 1.18
D129: закуска | E129: Молочный десерт | F129: 100 | G129: 8.25 | H129: 6.25 | I129: 22 | J129: 175 | K129: этик. | L129: 28
D130: кисломол. | E130: Масло сливочное порциями | F130: 10 | G130: 0.08 | H130: 7.25 | I130: 0.13 | J130: 66.1 | K130: 2 | L130: 11
D131: кисломол. | E131: Сыр порциями | F131: 15 | G131: 3.48 | H131: 4.43 | I131: 0 | J131: 54.6 | K131: 1 | L131: 10.36
D135: итого | F135: =SUM(F126:F134) -> 560 | G135: =SUM(G126:G134) -> 20.29 | H135: 25.94 | I135: 76 | J135: 618.58 | L135: =SUM(L126:L134) -> 80.3
A136: =A126 -> 2 | B136: =B126 -> 1 | C136: Обед | D136: закуска | E136: Фрукты в ассортименте (яблоко свежее) | F136: 150 | G136: 0.6 | H136: 0.45 | I136: 15.45 | J136: 70.5 | K136: 24 | L136: 21.42
D137: 1 блюдо | E137: Суп куриный с вермишелью | F137: 200 | G137: 4.91 | H137: 9.96 | I137: 9.02 | J137: 146.41 | K137: 35 | L137: 12.34
D138: 2 блюдо | E138: Гуляш | F138: 90 | G138: 18.13 | H138: 17.05 | I138: 3.69 | J138: 240.96 | K138: 89 | L138: 32.55
D139: гарнир | E139: Рис отварной с маслом | F139: 150 | G139: 3.34 | H139: 4.91 | I139: 33.93 | J139: 191.49 | K139: 53 | L139: 13.83
D140: сладкое
D141: хлеб бел. | E141: Хлеб пшеничный | F141: 20 | G141: 1.52 | H141: 0.16 | I141: 9.84 | J141: 47 | K141: 119 | L141: 0.49
D142: хлеб черн. | E142: Хлеб ржаной | F142: 20 | G142: 1.32 | H142: 0.24 | I142: 8.04 | J142: 39.6 | K142: 120 | L142: 0.66
D143: напиток | E143: Компот из смеси фруктов и ягод | F143: 200 | G143: 0.25 | H143: 0 | I143: 12.73 | J143: 51.3 | K143: 216 | L143: 8.31
D148: итого | F148: =SUM(F136:F147) -> 830 | G148: =SUM(G136:G147) -> 30.07 | H148: 32.77 | I148: 92.7 | J148: 787.26 | L148: =SUM(L136:L147) -> 89.6
A149: =A126 -> 2 | B149: =B126 -> 1 | C149: Итого за день: | F149: =F135+F148 -> 1390 | G149: =G135+G148 -> 50.36 | H149: =H135+H148 -> 58.71 | I149: =I135+I148 -> 168.7 | J149: =J135+J148 -> 1405.84 | L149: 169.45
A150: 2 | B150: 2 | C150: Завтрак | D150: гор.блюдо | E150: Каша гречневая вязкая с маслом | F150: 150 | G150: 4.3 | H150: 4.24 | I150: 18.77 | J150: 129.54 | K150: 227 | L150: 7.1
D151: гор.напиток | E151: Кисель витаминизированный плодово – ягодный | F151: 200 | G151: 0 | H151: 0 | I151: 20.17 | J151: 81.3 | K151: 95 | L151: 4.65
D152: хлеб | E152: Хлеб пшеничный | F152: 20 | G152: 1.52 | H152: 0.16 | I152: 9.84 | J152: 47 | K152: 119 | L152: 0.49
D153: хлеб черн. | E153: Хлеб ржаной | F153: 20 | G153: 1.32 | H153: 0.24 | I153: 8.04 | J153: 39.6 | K153: 120 | L153: 0.66
D154: закуска | E154: Фрукты в ассортименте (яблоко свежее) | F154: 150 | G154: 0.6 | H154: 0.6 | I154: 14.7 | J154: 70.5 | K154: 24 | L154: 21.42
D155: 2 блюдо | E155: Филе птицы тушеное в сливочном - сырном соусе | F155: 90 | G155: 19.78 | H155: 24.51 | I155: 2.52 | J155: 312.28 | K155: 300 | L155: 56.77
D160: итого | F160: =SUM(F150:F159) -> 630 | G160: =SUM(G150:G159) -> 27.52 | H160: 29.75 | I160: 74.04 | J160: 680.22 | L160: =SUM(L150:L159) -> 91.09
A161: =A150 -> 2 | B161: =B150 -> 2 | C161: Обед | D161: закуска | E161: Горошек консервированный | F161: 60 | G161: 1.75 | H161: 0.11 | I161: 3.55 | J161: 21.6 | K161: 172 | L161: 8.63
D162: 1 блюдо | E162: Суп картофельный с мясом | F162: 200 | G162: 8.49 | H162: 7.64 | I162: 10.58 | J162: 145.11 | K162: 37 | L162: 14.28
D163: 2 блюдо | E163: Печень говяжья тушеная в сметанном соусе | F163: 90 | G163: 13.81 | H163: 7.8 | I163: 7.21 | J163: 154.13 | K163: 85 | L163: 30.87
D164: гарнир | E164: Макароны отварные с маслом | F164: 150 | G164: 6.76 | H164: 3.93 | I164: 41.29 | J164: 227.48 | K164: 64 | L164: 10.37
D165: сладкое
D166: хлеб бел. | E166: Хлеб пшеничный | F166: 45 | G166: 2.28 | H166: 0.24 | I166: 14.76 | J166: 70.5 | K166: 119 | L166: 0.73
D167: хлеб черн. | E167: Хлеб ржаной | F167: 30 | G167: 1.32 | H167: 0.24 | I167: 8.04 | J167: 39.6 | K167: 120 | L167: 0.66
D168: напиток | E168: Кисель витаминизированный плодово – ягодный | F168: 200 | G168: 0 | H168: 0 | I168: 20 | J168: 80.6 | K168: 95 | L168: 4.65
D173: итого | F173: =SUM(F161:F172) -> 775 | G173: =SUM(G161:G172) -> 34.41 | H173: 19.96 | I173: 105.43 | J173: 739.02 | L173: =SUM(L161:L172) -> 70.19
A174: =A150 -> 2 | B174: =B150 -> 2 | C174: Итого за день: | F174: =F160+F173 -> 1405 | G174: =G160+G173 -> 61.93 | H174: =H160+H173 -> 49.71 | I174: =I160+I173 -> 179.47 | J174: =J160+J173 -> 1419.24 | L174: 161.28
A175: 2 | B175: 3 | C175: Завтрак | D175: гор.блюдо | E175: Картофельное пюре с маслом | F175: 150 | G175: 3.23 | H175: 5.11 | I175: 25.3 | J175: 159.79 | K175: 50 | L175: 22.92
D176: гор.напиток | E176: Компот из кураги | F176: 200 | G176: 0.83 | H176: 0.04 | I176: 15.16 | J176: 64.22 | K176: 102 | L176: 4.86
D177: хлеб | E177: Хлеб пшеничный | F177: 45 | G177: 3.42 | H177: 0.36 | I177: 22.14 | J177: 105.75 | K177: 119 | L177: 1.1
D178: хлеб черн. | E178: Хлеб ржаной | F178: 30 | G178: 1.98 | H178: 0.36 | I178: 12.06 | J178: 59.4 | K178: 120 | L178: 0.98
D179: закуска | E179: Огурцы порционные | F179: 60 | G179: 0.48 | H179: 0.6 | I179: 1.56 | J179: 8.4 | K179: 28 | L179: 16.32
D180: 2 блюдо | E180: Рыба тушенная с овощами | F180: 90 | G180: 12.86 | H180: 1.65 | I180: 4.94 | J180: 84.8 | K180: 75 | L180: 34.03
D184: итого | F184: =SUM(F175:F183) -> 575 | G184: =SUM(G175:G183) -> 22.8 | H184: 8.12 | I184: 81.16 | J184: 482.36 | L184: =SUM(L175:L183) -> 80.21
A185: =A175 -> 2 | B185: =B175 -> 3 | C185: Обед | D185: закуска | E185: Маринад из моркови | F185: 60 | G185: 1.12 | H185: 4.27 | I185: 6.02 | J185: 68.62 | K185: 13 | L185: 4.91
D186: 1 блюдо | E186: Суп гороховый с мясом | F186: 200 | G186: 9.19 | H186: 5.64 | I186: 13.63 | J186: 141.18 | K186: 34 | L186: 12.48
D187: 2 блюдо | E187: Котлета мясная | F187: 90 | G187: 17.25 | H187: 14.98 | I187: 7.87 | J187: 235.78 | K187: 152 | L187: 37.73
D188: гарнир | E188: Каша гречневая рассыпчатая с маслом | F188: 150 | G188: 7.26 | H188: 4.96 | I188: 31.76 | J188: 198.84 | K188: 54 | L188: 8.18
D189: сладкое
D190: хлеб бел. | E190: Хлеб пшеничный | F190: 20 | G190: 1.52 | H190: 0.16 | I190: 9.84 | J190: 47 | K190: 119 | L190: 0.49
D191: хлеб черн. | E191: Хлеб ржаной | F191: 20 | G191: 1.32 | H191: 0.24 | I191: 8.04 | J191: 39.6 | K191: 120 | L191: 0.66
D192: напиток | E192: Сок фруктовый | F192: 200 | G192: 0.2 | H192: 0 | I192: 24 | J192: 100 | K192: 107 | L192: 9.01
D196: итого | F196: =SUM(F185:F195) -> 740 | G196: =SUM(G185:G195) -> 37.86 | H196: 30.25 | I196: 101.16 | J196: 831.02 | L196: =SUM(L185:L195) -> 73.46
A197: =A175 -> 2 | B197: =B175 -> 3 | C197: Итого за день: | F197: =F184+F196 -> 1315 | G197: =G184+G196 -> 60.66 | H197: =H184+H196 -> 38.37 | I197: =I184+I196 -> 182.32 | J197: =J184+J196 -> 1313.38 | L197: 153.67
A198: 2 | B198: 4 | C198: Завтрак | D198: гор.блюдо | E198: Омлет с сыром | F198: 150 | G198: 18.86 | H198: 20.22 | I198: 2.79 | J198: 270.32 | K198: 67 | L198: 43.8
D199: гор.напиток | E199: Какао с молоком | F199: 200 | G199: 6.64 | H199: 5.15 | I199: 16.81 | J199: 141.19 | K199: 115 | L199: 19.72
D200: хлеб | E200: Батон пшеничный | F200: 25 | G200: 2.25 | H200: 0.87 | I200: 14.94 | J200: 78.6 | K200: 121 | L200: 0.98
D201: закуска | E201: Фрукты в ассортименте (яблоко свежее) | F201: 150 | G201: 0.83 | H201: 0.45 | I201: 15.45 | J201: 70.5 | K201: 24 | L201: 21.42
D207: итого | F207: =SUM(F198:F206) -> 525 | G207: =SUM(G198:G206) -> 28.58 | H207: 26.69 | I207: 49.99 | J207: 560.61 | L207: =SUM(L198:L206) -> 85.92
A208: =A198 -> 2 | B208: =B198 -> 4 | C208: Обед | D208: закуска | E208: Фрукты в ассортименте (яблоко свежее) | F208: 150 | G208: 0.83 | H208: 0.45 | I208: 15.45 | J208: 70.5 | K208: 24 | L208: 21.42
D209: 1 блюдо | E209: Борщ с мясом и сметаной | F209: 200 | G209: 5.74 | H209: 8.78 | I209: 8.74 | J209: 138.04 | K209: 31 | L209: 19.83
D210: 2 блюдо | E210: Рыба запеченная под сырно-овощной шапкой | F210: 90 | G210: 14.8 | H210: 13.02 | I210: 12.17 | J210: 226.36 | K210: 148 | L210: 37.29
D211: гарнир | E211: Рагу овощное с маслом | F211: 150 | G211: 2.41 | H211: 7.02 | I211: 14.18 | J211: 130.79 | K211: 22 | L211: 14.8
D212: сладкое
D213: хлеб бел. | E213: Хлеб пшеничный | F213: 45 | G213: 3.42 | H213: 0.36 | I213: 22.14 | J213: 105.75 | K213: 119 | L213: 1.1
D214: хлеб черн. | E214: Хлеб ржаной | F214: 25 | G214: 1.65 | H214: 0.3 | I214: 10.05 | J214: 49.5 | K214: 120 | L214: 0.82
D215: напиток | E215: Чай с сахаром | F215: 200 | G215: 0 | H215: 0 | I215: 7.27 | J215: 28.73 | K215: 114 | L215: 1.13
D220: итого | F220: =SUM(F208:F219) -> 860 | G220: =SUM(G208:G219) -> 28.85 | H220: 29.93 | I220: 90 | J220: 749.67 | L220: =SUM(L208:L219) -> 96.39
A221: =A198 -> 2 | B221: =B198 -> 4 | C221: Итого за день: | F221: =F207+F220 -> 1385 | G221: =G207+G220 -> 57.43 | H221: =H207+H220 -> 56.62 | I221: =I207+I220 -> 139.99 | J221: =J207+J220 -> 1310.28 | L221: 182.51
A222: 2 | B222: 5 | C222: Завтрак | D222: гор.блюдо | E222: Рис отварной с маслом | F222: 150 | G222: 3.34 | H222: 4.91 | I222: 33.93 | J222: 191.49 | K222: 53 | L222: 13.83
D223: гор.напиток | E223: Сок фруктовый | F223: 200 | G223: 1 | H223: 0.2 | I223: 20.2 | J223: 92 | K223: 107 | L223: 9.01
D224: хлеб | E224: Хлеб пшеничный | F224: 45 | G224: 1.52 | H224: 0.16 | I224: 9.84 | J224: 47 | K224: 119 | L224: 0.49
D225: хлеб черн. | E225: Хлеб ржаной | F225: 30 | G225: 1.32 | H225: 0.24 | I225: 8.04 | J225: 39.6 | K225: 120 | L225: 0.66
D226: закуска | E226: Маринад из моркови | F226: 60 | G226: 1.12 | H226: 4.27 | I226: 6.02 | J226: 68.62 | K226: 13 | L226: 4.91
D227: 2 блюдо | E227: Люля - кебаб с томатным соусом с зеленью | F227: 90 | G227: 12.52 | H227: 10 | I227: 12.3 | J227: 190.38 | K227: 153 | L227: 26.67
D231: итого | F231: =SUM(F222:F230) -> 575 | G231: =SUM(G222:G230) -> 20.82 | H231: 19.78 | I231: 90.33 | J231: 629.09 | L231: =SUM(L222:L230) -> 55.57
A232: =A222 -> 2 | B232: =B222 -> 5 | C232: Обед | D232: закуска | E232: Огурцы порционные | F232: 60 | G232: 0.48 | H232: 0.6 | I232: 1.56 | J232: 8.4 | K232: 28 | L232: 16.32
D233: 1 блюдо | E233: Суп куриный с рисом и томатом | F233: 200 | G233: 4.94 | H233: 4.7 | I233: 13.19 | J233: 114.69 | K233: 40 | L233: 19.55
D234: 2 блюдо | E234: Жаркое с мясом | F234: 250 | G234: 20.15 | H234: 19.08 | I234: 24.59 | J234: 350.62 | K234: 86 | L234: 39.42
D235: гарнир
D236: сладкое
D237: хлеб бел. | E237: Хлеб пшеничный | F237: 45 | G237: 3.42 | H237: 0.36 | I237: 22.14 | J237: 105.75 | K237: 119 | L237: 1.1
D238: хлеб черн. | E238: Хлеб ржаной | F238: 25 | G238: 1.65 | H238: 0.3 | I238: 10.05 | J238: 49.5 | K238: 120 | L238: 0.82
D239: напиток | E239: Компот из кураги | F239: 200 | G239: 0.83 | H239: 0.04 | I239: 15.16 | J239: 64.22 | K239: 102 | L239: 4.86
D243: итого | F243: =SUM(F232:F242) -> 780 | G243: =SUM(G232:G242) -> 31.47 | H243: 25.08 | I243: 86.69 | J243: 693.18 | L243: =SUM(L232:L242) -> 82.07
A244: =A222 -> 2 | B244: =B222 -> 5 | C244: Итого за день: | F244: =F231+F243 -> 1355 | G244: =G231+G243 -> 52.29 | H244: =H231+H243 -> 44.86 | I244: =I231+I243 -> 177.02 | J244: =J231+J243 -> 1322.27 | L244: 137.64
A245: 3 | B245: 1 | C245: Завтрак | D245: гор.блюдо | E245: Макаронные изделия отварные с сыром и маслом | F245: 150 | G245: 7.85 | H245: 5.23 | I245: 41.29 | J245: 243.85 | K245: 125 | L245: 13.82
D246: гор.напиток | E246: Чай с сахаром | F246: 200 | G246: 0 | H246: 0 | I246: 7.21 | J246: 28.73 | K246: 114 | L246: 1.13
D247: хлеб | E247: Хлеб пшеничный | F247: 30 | G247: 2.28 | H247: 0.24 | I247: 14.76 | J247: 70.5 | K247: 119 | L247: 0.73
D248: хлеб черн. | E248: Хлеб ржаной | F248: 30 | G248: 1.98 | H248: 0.36 | I248: 12.06 | J248: 59.4 | K248: 120 | L248: 0.98
D249: закуска | E249: Фрукты в ассортименте (яблоко свежее) | F249: 150 | G249: 0.6 | H249: 0.45 | I249: 15.45 | J249: 70.5 | K249: 24 | L249: 21.42
D250: закуска | E250: Фруктовый десерт | F250: 100 | G250: 0 | H250: 0 | I250: 15 | J250: 60 | K250: этикетка | L250: 17
D254: итого | F254: =SUM(F245:F253) -> 660 | G254: =SUM(G245:G253) -> 12.71 | H254: 6.28 | I254: 105.77 | J254: 532.98 | L254: 55.08
A255: =A245 -> 3 | B255: =B245 -> 1 | C255: Обед | D255: закуска | E255: Икра овощная кабачковая | F255: 60 | G255: 1.2 | H255: 5.4 | I255: 5.16 | J255: 73.2 | K255: 135 | L255: 11.3
D256: 1 блюдо | E256: Рассольник с мясом и сметаной | F256: 200 | G256: 6.2 | H256: 6.38 | I256: 12.02 | J256: 131.11 | K256: 33 | L256: 17.73
D257: 2 блюдо | E257: Филе птицы тушеное в томатном соусе | F257: 90 | G257: 14.84 | H257: 12.69 | I257: 4.46 | J257: 191.87 | K257: 80 | L257: 35.49
D258: гарнир | E258: Каша гречневая рассыпчатая с маслом | F258: 150 | G258: 7.26 | H258: 4.96 | I258: 31.76 | J258: 198.84 | K258: 54 | L258: 8.18
D259: сладкое
D260: хлеб бел. | E260: Хлеб пшеничный | F260: 30 | G260: 2.28 | H260: 0.24 | I260: 14.76 | J260: 70.5 | K260: 119 | L260: 0.73
D261: хлеб черн. | E261: Хлеб ржаной | F261: 25 | G261: 1.65 | H261: 0.3 | I261: 10.05 | J261: 49.5 | K261: 120 | L261: 0.82
D262: напиток | E262: Компот из сухофруктов | F262: 200 | G262: 0.37 | H262: 0 | I262: 14.85 | J262: 59.48 | K262: 98 | L262: 3.74
D267: итого | F267: =SUM(F255:F266) -> 755 | G267: =SUM(G255:G266) -> 33.8 | H267: 29.97 | I267: 93.06 | J267: 774.5 | L267: =SUM(L255:L266) -> 77.99
A268: =A245 -> 3 | B268: =B245 -> 1 | C268: Итого за день: | F268: =F254+F267 -> 1415 | G268: =G254+G267 -> 46.51 | H268: 36.25 | I268: 198.83 | J268: 1307.48 | L268: 133.07
A269: 3 | B269: 2 | C269: Завтрак | D269: гор.блюдо | E269: Картофельное пюре с маслом | F269: 150 | G269: 3.31 | H269: 5.56 | I269: 25.99 | J269: 167.07 | K269: 50 | L269: 22.92
D270: гор.напиток | E270: Напиток плодово-ягодный витаминизированный | F270: 200 | G270: 0 | H270: 0 | I270: 14.4 | J270: 58.4 | K270: 104 | L270: 3.86
D271: хлеб | E271: Хлеб пшеничный | F271: 30 | G271: 2.28 | H271: 0.24 | I271: 14.76 | J271: 70.5 | K271: 119 | L271: 0.73
D272: хлеб черн. | E272: Хлеб ржаной | F272: 20 | G272: 1.32 | H272: 0.24 | I272: 8.04 | J272: 39.6 | K272: 120 | L272: 0.66
D273: закуска | E273: Помидоры порционные | F273: 60 | G273: 0.66 | H273: 0.12 | I273: 2.28 | J273: 14.4 | K273: 29 | L273: 16.32
D274: 2 блюдо | E274: Гуляш | F274: 90 | G274: 18.13 | H274: 17.05 | I274: 3.69 | J274: 240.96 | K274: 89 | L274: 32.55
D279: итого | F279: =SUM(F269:F278) -> 550 | G279: =SUM(G269:G278) -> 25.7 | H279: 23.21 | I279: 69.16 | J279: 590.93 | L279: =SUM(L269:L278) -> 77.04
A280: 3 | B280: =B269 -> 2 | C280: Обед | D280: закуска | E280: Фрукты в ассортименте (яблоко свежее) | F280: 150 | G280: 0.6 | H280: 0.6 | I280: 14.7 | J280: 70.5 | K280: 24 | L280: 21.42
D281: 1 блюдо | E281: Суп гороховый с мясом | F281: 200 | G281: 9.19 | H281: 5.64 | I281: 13.63 | J281: 141.18 | K281: 34 | L281: 12.48
D282: 2 блюдо | E282: Курица запеченная с сыром | F282: 90 | G282: 24.87 | H282: 21.09 | I282: 0.72 | J282: 290.5 | K282: 82 | L282: 43.65
D283: гарнир | E283: Спагетти отварные с маслом | F283: 150 | G283: 6.76 | H283: 3.93 | I283: 41.29 | J283: 227.48 | K283: 65 | L283: 10.76
D284: сладкое
D285: хлеб бел. | E285: Хлеб пшеничный | F285: 20 | G285: 2.28 | H285: 0.24 | I285: 14.76 | J285: 70.5 | K285: 119 | L285: 0.49
... 139 more rows
